bitfinex-derivatives/quotes_BTCF0:USTF0_20241221
["timestamp","ask_amount","ask_price","bid_price","bid_amount"]
[1734790722058,0.3608,97739.0,97738.0,0.056175]
[1734790723865,0.3608,97739.0,97738.0,0.06417617]
[1734790724067,0.3608,97739.0,97738.0,0.07417617]
[1734790724467,0.3608,97739.0,97738.0,0.06617617]
[1734790724663,0.3608,97739.0,97738.0,0.07317617]
[1734790724970,0.36136001,97746.0,97738.0,0.07317617]
[1734790725263,0.3608,97746.0,97745.0,0.051171]
[1734790727357,0.3608,97746.0,97745.0,0.059171]
[1734790728064,0.3608,97746.0,97745.0,0.057171]
[1734790728767,0.0671,97747.0,97745.0,0.057171]
[1734790729762,0.0671,97747.0,97745.0,0.055171]
[1734790730063,0.0671,97747.0,97745.0,0.054171]
[1734790730261,0.0723,97753.0,97752.0,0.051167]
[1734790731362,0.0733,97753.0,97752.0,0.051167]
[1734790733573,0.0723,97753.0,97752.0,0.053167]
[1734790734073,0.0723,97753.0,97752.0,0.054167]
[1734790734376,0.0723,97753.0,97752.0,0.053167]
[1734790734670,0.0723,97753.0,97752.0,0.06250763]
[1734790735663,0.0723,97753.0,97752.0,0.06350763]
[1734790736272,0.0723,97753.0,97752.0,0.053167]
[1734790737368,0.0723,97753.0,97752.0,0.055167]
[1734790737657,0.0723,97753.0,97752.0,0.054167]
[1734790737858,0.0723,97753.0,97752.0,0.051167]
[1734790738662,0.0723,97753.0,97740.0,0.051173]
[1734790738868,0.3608,97741.0,97740.0,0.051173]
[1734790740964,0.3608,97741.0,97740.0,0.058173]
[1734790741367,0.05117,97747.0,97740.0,0.01]
[1734790741556,0.05117,97747.0,97746.0,0.05117]
[1734790741970,0.05117,97747.0,97740.0,0.01]
[1734790741971,0.0723,97753.0,97740.0,0.01]
[1734790742178,0.3608,97744.0,97740.0,0.061173]
[1734790742472,0.3608,97744.0,97743.0,0.051172]
[1734790742676,0.051173,97741.0,97740.0,0.01]
[1734790743873,0.051173,97741.0,97740.0,0.003]
[1734790744066,0.051173,97741.0,97740.0,0.007]
[1734790744264,0.051173,97741.0,97740.0,0.004]
[1734790744468,0.051173,97741.0,97740.0,0.003]
[1734790744672,0.051173,97741.0,97740.0,0.01]
[1734790745462,0.3608,97744.0,97740.0,0.01]
[1734790745668,0.3608,97744.0,97743.0,0.051172]
[1734790747672,0.3608,97744.0,97743.0,0.005]
[1734790748363,0.3608,97744.0,97743.0,0.008]
[1734790749578,0.37105663,97744.0,97732.0,0.17912181]
[1734790749883,0.411977,97733.0,97731.0,0.17912181]
[1734790750086,0.1417,97732.0,97731.0,0.17912181]
[1734790751177,0.0704,97732.0,97731.0,0.17912181]
[1734790751389,0.0704,97732.0,97731.0,0.18812181]
[1734790751579,0.0704,97732.0,97731.0,0.19312181]
[1734790751779,0.0704,97732.0,97731.0,0.014]
[1734790757085,0.08064944,97732.0,97731.0,0.014]
[1734790758689,0.051181,97725.0,97724.0,0.00012234]
[1734790758884,0.051181,97725.0,97712.0,0.00153499]
[1734790758885,0.051193,97702.0,97685.0,0.43081748]
[1734790759091,0.051193,97702.0,97699.0,0.17912181]
[1734790759092,0.3608,97702.0,97699.0,0.17912181]
[1734790759291,0.051194,97701.0,97699.0,0.17912181]
[1734790759597,0.3608,97702.0,97699.0,0.17912181]
[1734790759598,0.3608,97702.0,97701.0,0.051194]
[1734790759894,0.36092234,97702.0,97701.0,0.051194]
[1734790760798,0.36092234,97702.0,97701.0,0.056194]
[1734790761390,0.36192234,97702.0,97701.0,0.062194]
[1734790762188,0.36192234,97702.0,97701.0,0.064194]
[1734790762990,0.36192234,97702.0,97701.0,0.054194]
[1734790763699,0.36192234,97702.0,97701.0,0.051194]
[1734790763895,0.36192234,97702.0,97701.0,0.054194]
[1734790766197,0.36192234,97702.0,97701.0,0.061194]
[1734790769290,0.36192234,97702.0,97701.0,0.054194]
[1734790769503,0.36192234,97702.0,97701.0,0.060194]
[1734790769805,0.36192234,97702.0,97701.0,0.009]
[1734790770995,0.36092234,97702.0,97701.0,0.008]
[1734790772097,0.36092234,97702.0,97701.0,0.007]
[1734790772499,0.36092234,97702.0,97701.0,0.002]
[1734790772802,0.36092234,97702.0,97701.0,0.006]
[1734790772996,0.36092234,97702.0,97701.0,0.057194]
[1734790777196,0.00012234,97702.0,97701.0,0.057194]
[1734790778904,0.12237553,97722.0,97721.0,0.051183]
[1734790779901,0.1818168,97736.0,97721.0,0.051183]
[1734790779902,0.12237553,97737.0,97721.0,0.051183]
[1734790780106,0.003,97722.0,97721.0,0.051183]
[1734790780297,0.011,97722.0,97721.0,0.052183]
[1734790781507,0.008,97722.0,97721.0,0.053183]
[1734790782002,0.10054123,97731.0,97727.0,0.05118]
[1734790782208,0.001,97722.0,97721.0,0.07632966]
[1734790782597,0.002,97722.0,97721.0,0.07632966]
[1734790783010,0.001,97722.0,97721.0,0.07032966]
[1734790783312,0.001,97731.0,97727.0,0.007]
[1734790783512,0.001,97731.0,97730.0,0.051179]
[1734790784800,0.001,97722.0,97721.0,0.064183]
[1734790785200,0.001,97722.0,97721.0,0.060183]
[1734790785406,0.001,97722.0,97718.0,0.5508803]
[1734790785407,0.00153561,97734.0,97732.0,0.051178]
[1734790786810,0.00153561,97734.0,97732.0,0.055178]
[1734790787613,0.00153561,97734.0,97732.0,0.057178]
[1734790789408,0.06433561,97734.0,97732.0,0.057178]
[1734790791221,0.0628,97734.0,97732.0,0.057178]
[1734790792806,0.0628,97734.0,97732.0,0.006]
[1734790793008,0.0628,97734.0,97710.0,0.17912181]
[1734790793202,0.10054123,97721.0,97719.0,0.051184]
[1734790793407,0.41254201,97724.0,97720.0,0.051184]
[1734790793608,0.0631,97723.0,97720.0,0.051184]
[1734790793811,0.051183,97721.0,97720.0,0.051184]
[1734790794315,0.0631,97723.0,97710.0,0.00997995]
[1734790794513,0.411987,97716.0,97715.0,0.051186]
[1734790795115,0.3608,97716.0,97715.0,0.051186]
[1734790795717,0.3618,97716.0,97715.0,0.056186]
[1734790796911,0.3628,97716.0,97715.0,0.061186]
[1734790797611,0.3628,97716.0,97715.0,0.01]
[1734790798421,0.002,97716.0,97715.0,0.01]
[1734790802725,0.3608,97724.0,97723.0,0.051182]
[1734790802930,0.12237553,97733.0,97732.0,0.051178]
[1734790804426,0.00153526,97740.0,97736.0,0.051176]
[1734790804624,0.0648,97738.0,97736.0,0.051176]
[1734790806426,0.0648,97738.0,97732.0,0.009]
[1734790806723,0.051177,97735.0,97733.0,0.051177]
[1734790807834,0.051177,97735.0,97733.0,0.053177]
[1734790808219,0.0648,97738.0,97736.0,0.051175]
[1734790810129,0.0648,97738.0,97736.0,0.052175]
[1734790810636,0.115975,97738.0,97736.0,0.052175]
[1734790810926,0.115975,97738.0,97736.0,0.054175]
[1734790811730,0.115975,97738.0,97736.0,0.003]
[1734790815222,0.1260054,97738.0,97736.0,0.003]
[1734790817931,0.051185,97719.0,97718.0,0.051185]
[1734790819628,0.051185,97719.0,97718.0,0.056185]
[1734790820633,0.052185,97719.0,97718.0,0.009]
[1734790821230,0.111885,97719.0,97718.0,0.009]
[1734790822227,0.12191079,97719.0,97718.0,0.009]
[1734790822432,0.12191079,97719.0,97701.0,0.051194]
[1734790822433,0.051193,97703.0,97702.0,0.17912181]
[1734790823649,0.052193,97703.0,97702.0,0.008]
[1734790823828,0.053193,97703.0,97702.0,0.008]
[1734790824536,0.053193,97703.0,97696.0,0.17912181]
[1734790824537,0.051196,97697.0,97696.0,0.17912181]
[1734790824732,0.411996,97697.0,97696.0,0.17912181]
[1734790825322,0.411996,97697.0,97694.0,0.00153526]
[1734790825323,0.051197,97695.0,97694.0,0.00153526]
[1734790825525,0.3608,97697.0,97694.0,0.00153526]
[1734790825728,0.12254753,97712.0,97711.0,0.051189]
[1734790826131,0.02454753,97712.0,97711.0,0.051189]
[1734790826331,0.18233681,97723.0,97716.0,0.051186]
[1734790826526,0.13777888,97723.0,97722.0,0.051183]
[1734790826723,0.13777888,97731.0,97730.0,0.051179]
[1734790828142,0.3608,97737.0,97736.0,0.051176]
[1734790830038,0.3608,97737.0,97736.0,0.052176]
[1734790830246,0.3618,97737.0,97736.0,0.052176]
[1734790830947,0.3608,97737.0,97736.0,0.054176]
[1734790831443,0.3608,97737.0,97736.0,0.003]
[1734790831640,0.3618,97737.0,97724.0,0.17912181]
[1734790831845,0.3608,97725.0,97724.0,0.17912181]
[1734790832739,0.3608,97725.0,97715.0,0.051186]
[1734790832943,0.46134912,97725.0,97716.0,0.051186]
[1734790833445,0.051184,97720.0,97710.0,0.17912181]
[1734790833645,0.051186,97717.0,97711.0,0.411988]
[1734790833945,0.051186,97717.0,97711.0,0.42199431]
[1734790834144,0.051187,97715.0,97711.0,0.42199431]
[1734790834839,0.051187,97714.0,97711.0,0.42199431]
[1734790835144,0.051187,97714.0,97711.0,0.42399431]
[1734790835545,0.051187,97714.0,97711.0,0.06319431]
[1734790835845,0.051188,97712.0,97711.0,0.002]
[1734790836244,0.051188,97712.0,97711.0,0.006]
[1734790836443,0.051188,97712.0,97711.0,0.004]
[1734790836643,0.051188,97712.0,97711.0,0.006]
[1734790836941,0.051188,97712.0,97711.0,0.002]
[1734790837144,0.411988,97712.0,97711.0,0.006]
[1734790837545,0.411988,97712.0,97711.0,0.004]
[1734790837737,0.412988,97712.0,97711.0,0.006]
[1734790838445,0.42342417,97712.0,97711.0,0.006]
[1734790840047,0.051197,97695.0,97694.0,0.17912181]
[1734790840238,0.411997,97695.0,97694.0,0.17912181]
[1734790840433,0.051198,97693.0,97687.0,0.01027167]
[1734790840647,0.051199,97692.0,97686.0,0.00153539]
[1734790841237,0.051201,97689.0,97686.0,0.01185406]
[1734790841439,0.051201,97689.0,97686.0,0.00153539]
[1734790842549,0.36236001,97695.0,97694.0,0.051198]
[1734790842748,0.3618,97695.0,97694.0,0.051198]
[1734790843149,0.001,97692.0,97686.0,0.05473739]
[1734790843753,0.3618,97695.0,97686.0,0.05273739]
[1734790844258,0.001,97692.0,97686.0,0.05273739]
[1734790844441,0.001,97692.0,97687.0,0.051201]
[1734790844841,0.3618,97695.0,97687.0,0.051201]
[1734790846654,0.051199,97692.0,97687.0,0.002]
[1734790846854,0.052199,97692.0,97687.0,0.002]
[1734790847556,0.0512,97691.0,97687.0,0.002]
[1734790848152,0.051201,97688.0,97687.0,0.002]
[1734790849244,0.051201,97688.0,97686.0,0.00153539]
[1734790849444,0.051201,97688.0,97687.0,0.002]
[1734790850542,0.052201,97688.0,97687.0,0.002]
[1734790850741,0.052201,97688.0,97677.0,0.00012964]
[1734790850742,0.051206,97678.0,97677.0,0.00012964]
[1734790850948,0.412006,97678.0,97677.0,0.00012964]
[1734790851357,0.051212,97667.0,97666.0,0.17912181]
[1734790851548,0.051214,97663.0,97659.0,0.17912181]
[1734790852156,0.3608,97667.0,97659.0,0.17912181]
[1734790852359,9.734e-05,97666.0,97660.0,0.051215]
[1734790852662,0.001,97663.0,97659.0,0.18112181]
[1734790852858,0.051215,97661.0,97659.0,0.18112181]
[1734790853044,0.051215,97661.0,97659.0,0.002]
[1734790854363,0.051215,97661.0,97651.0,0.01025205]
[1734790854551,0.001,97663.0,97650.0,0.46134912]
[1734790854751,0.00109734,97666.0,97659.0,0.3608]
[1734790855055,0.001,97661.0,97660.0,0.051215]
[1734790856456,0.002,97661.0,97660.0,0.051215]
[1734790857469,0.00075505,97661.0,97660.0,0.06152097]
[1734790857761,0.001,97661.0,97660.0,0.001]
[1734790857965,0.052215,97661.0,97660.0,0.001]
[1734790858669,0.052215,97661.0,97656.0,0.051217]
[1734790858871,0.052215,97661.0,97660.0,0.001]
[1734790859261,0.052215,97661.0,97660.0,0.002]
[1734790859755,0.052215,97661.0,97660.0,0.001]
[1734790860256,0.001,97661.0,97660.0,0.001]
[1734790860457,0.001,97661.0,97660.0,0.003]
[1734790865268,0.051215,97660.0,97651.0,0.17912181]
[1734790865455,0.41202,97652.0,97651.0,0.17912181]
[1734790865860,0.41202,97652.0,97641.0,0.30118123]
[1734790865861,0.051222,97648.0,97646.0,0.17912181]
[1734790866962,0.00010271,97647.0,97646.0,0.17912181]
[1734790867162,0.00010271,97647.0,97646.0,0.18012181]
[1734790867457,0.00010271,97647.0,97646.0,0.001]
[1734790867669,0.051223,97646.0,97637.0,0.00153617]
[1734790867966,0.412027,97638.0,97637.0,0.00153617]
[1734790868371,0.051234,97625.0,97617.0,0.17912181]
[1734790868563,0.412035,97623.0,97617.0,0.17912181]
[1734790868969,0.41213098,97623.0,97617.0,0.17912181]
[1734790869370,0.41939598,97623.0,97613.0,0.23882908]
[1734790869566,0.41204,97614.0,97613.0,0.23882908]
[1734790869775,0.3608,97614.0,97608.0,0.18060179]
[1734790870072,0.051242,97609.0,97608.0,0.18060179]
[1734790871672,0.001,97609.0,97605.0,0.051244]
[1734790872176,0.002,97609.0,97605.0,0.051244]
[1734790872573,0.051246,97601.0,97596.0,0.051249]
[1734790872874,0.051246,97601.0,97591.0,0.3608]
[1734790873070,0.051246,97601.0,97594.0,0.01032079]
[1734790873875,0.052246,97601.0,97594.0,0.01032079]
[1734790874076,0.053246,97601.0,97594.0,0.01032079]
[1734790874473,0.053246,97601.0,97591.0,0.413012]
[1734790874777,0.053246,97601.0,97592.0,0.01171551]
[1734790874963,0.05332997,97601.0,97592.0,0.01171551]
[1734790875980,0.05232997,97601.0,97594.0,0.05125]
[1734790876285,0.05332997,97601.0,97594.0,0.05125]
[1734790876780,0.00208397,97601.0,97600.0,0.151247]
[1734790876962,0.051232,97629.0,97602.0,0.051246]
[1734790877168,0.10054912,97620.0,97612.0,0.05124]
[1734790877365,0.05123,97633.0,97619.0,0.051236]
[1734790877770,0.3608,97645.0,97619.0,0.051236]
[1734790878077,0.00011324,97644.0,97630.0,0.3608]
[1734790878374,0.00011324,97644.0,97631.0,0.1195]
[1734790878574,0.00011324,97644.0,97643.0,0.3608]
[1734790878788,0.00153688,97650.0,97649.0,0.051221]
[1734790879378,0.051211,97668.0,97657.0,0.051217]
[1734790879678,0.06158438,97668.0,97659.0,0.051216]
[1734790879878,0.051211,97668.0,97660.0,0.051215]
[1734790880077,0.10054912,97670.0,97660.0,0.051215]
[1734790880377,0.051212,97667.0,97660.0,0.051215]
[1734790881265,0.001,97668.0,97660.0,0.051215]
[1734790881467,0.051213,97666.0,97660.0,0.051215]
[1734790882768,0.051213,97666.0,97660.0,0.052215]
[1734790882969,0.051214,97662.0,97660.0,0.001]
[1734790883667,0.001,97667.0,97660.0,0.001]
[1734790883865,0.051211,97670.0,97665.0,0.051213]
[1734790884065,0.3608,97671.0,97661.0,0.0598]
[1734790884369,0.3608,97671.0,97669.0,0.051211]
[1734790884977,0.00056001,97678.0,97669.0,0.051211]
[1734790885175,0.01011564,97681.0,97679.0,0.051205]
[1734790885476,0.3608,97689.0,97679.0,0.051205]
[1734790885477,0.051202,97687.0,97679.0,0.051205]
[1734790885676,0.00996895,97691.0,97671.0,0.3608]
[1734790885875,0.051198,97694.0,97683.0,0.3608]
[1734790886181,0.3608,97697.0,97683.0,0.3608]
[1734790886376,0.051202,97686.0,97684.0,0.0603]
[1734790886981,0.051197,97696.0,97684.0,0.0603]
[1734790887183,0.051198,97695.0,97686.0,0.051202]
[1734790887377,0.051198,97695.0,97671.0,0.00096]
[1734790887378,0.051209,97673.0,97671.0,0.00096]
[1734790887579,0.3608,97674.0,97664.0,0.052173]
[1734790887782,0.051211,97669.0,97664.0,0.051213]
[1734790887973,0.421211,97669.0,97664.0,0.051213]
[1734790888482,0.051214,97664.0,97662.0,0.23882908]
[1734790889786,0.051214,97664.0,97659.0,0.111516]
[1734790890081,0.3608,97665.0,97663.0,0.051214]
[1734790890487,0.3608,97665.0,97659.0,0.0603]
[1734790890683,0.412013,97665.0,97659.0,0.111516]
[1734790890871,0.412013,97665.0,97659.0,0.112516]
[1734790890872,0.051215,97662.0,97659.0,0.112516]
[1734790891580,0.051215,97662.0,97659.0,0.114516]
[1734790891782,0.051215,97662.0,97659.0,0.115516]
[1734790892886,0.3608,97665.0,97659.0,0.0643]
[1734790893084,0.05121,97671.0,97667.0,0.051212]
[1734790893983,0.051211,97669.0,97667.0,0.051212]
[1734790894490,0.051213,97666.0,97660.0,0.051215]
[1734790894783,0.051214,97664.0,97660.0,0.051215]
[1734790894987,0.051214,97664.0,97659.0,0.0633]
[1734790894988,0.051215,97661.0,97659.0,0.003]
[1734790895288,0.051222,97649.0,97643.0,0.051224]
[1734790895484,0.051221,97650.0,97635.0,0.3608]
[1734790895783,0.051221,97650.0,97646.0,0.051222]
[1734790895988,0.051221,97649.0,97647.0,0.051222]
[1734790896179,0.3608,97661.0,97635.0,0.3608]
[1734790896381,0.10054912,97660.0,97649.0,0.051221]
[1734790896683,0.051219,97654.0,97649.0,0.051221]
[1734790896885,0.05122,97651.0,97649.0,0.051221]
[1734790897187,0.051222,97648.0,97647.0,0.003]
[1734790898488,0.0575,97650.0,97639.0,0.00153612]
[1734790898697,0.051226,97640.0,97639.0,0.00153612]
[1734790899187,0.005,97648.0,97639.0,0.00153612]
[1734790899386,0.006,97648.0,97639.0,0.00153612]
[1734790899688,0.001,97648.0,97646.0,0.051223]
[1734790900075,0.051222,97648.0,97646.0,0.051223]
[1734790900278,0.054222,97648.0,97646.0,0.051223]
[1734790900973,0.057222,97648.0,97639.0,0.00153612]
[1734790901180,0.051223,97645.0,97639.0,0.00153612]
[1734790901487,0.051225,97643.0,97640.0,0.051226]
[1734790901685,0.051226,97641.0,97639.0,0.00153612]
[1734790902189,0.3608,97642.0,97640.0,0.051226]
[1734790902382,0.3608,97642.0,97639.0,0.00153612]
[1734790902383,0.051226,97640.0,97639.0,0.00153612]
[1734790902978,0.051226,97640.0,97639.0,0.00453612]
[1734790903482,0.051226,97640.0,97639.0,0.003]
[1734790903891,0.05123,97633.0,97632.0,0.00013235]
[1734790904189,0.41203,97633.0,97632.0,0.00013235]
[1734790904988,0.41203,97633.0,97608.0,0.00153663]
[1734790905178,0.051242,97609.0,97608.0,0.00153663]
[1734790905975,0.05132294,97609.0,97608.0,0.00153663]
[1734790906483,0.05132294,97609.0,97608.0,0.00253663]
[1734790909186,8.094e-05,97609.0,97603.0,0.00997983]
[1734790909388,8.094e-05,97609.0,97608.0,0.413043]
[1734790910090,8.094e-05,97609.0,97608.0,0.052243]
[1734790910283,8.094e-05,97609.0,97608.0,0.051243]
[1734790910681,0.051237,97619.0,97605.0,0.3608]
[1734790910885,0.051237,97619.0,97614.0,0.051239]
[1734790911483,0.05124,97614.0,97607.0,0.051243]
[1734790911681,0.05124,97614.0,97612.0,0.05124]
[1734790911888,8.195e-05,97613.0,97612.0,0.05124]
[1734790913292,8.195e-05,97613.0,97612.0,0.05224]
[1734790913487,8.195e-05,97613.0,97612.0,0.05324]
[1734790915195,8.195e-05,97613.0,97612.0,0.06227664]
[1734790915380,8.195e-05,97613.0,97612.0,0.06327664]
[1734790915585,0.00108195,97613.0,97612.0,0.06327664]
[1734790916592,0.00108195,97613.0,97612.0,0.06227664]
[1734790916896,0.00108195,97613.0,97612.0,0.06327664]
[1734790917395,0.10054912,97640.0,97612.0,0.01203664]
[1734790917602,0.051236,97621.0,97619.0,0.051237]
[1734790917997,0.051236,97621.0,97618.0,0.051237]
[1734790918203,0.051236,97621.0,97619.0,0.051237]
[1734790918492,0.10054912,97629.0,97612.0,0.01103664]
[1734790918690,0.001,97613.0,97612.0,0.06427764]
[1734790918896,0.001,97613.0,97612.0,0.06327764]
[1734790919192,0.051235,97624.0,97619.0,0.051237]
[1734790919595,0.051235,97624.0,97620.0,0.051236]
[1734790920393,0.10054912,97629.0,97627.0,0.051233]
[1734790920703,0.051231,97631.0,97627.0,0.051233]
[1734790921100,0.37155949,97633.0,97631.0,0.05123]
[1734790921293,0.37103948,97633.0,97631.0,0.05123]
[1734790921785,0.37103948,97633.0,97620.0,0.0614]
[1734790921990,0.15178112,97630.0,97625.0,0.051233]
[1734790922192,0.15178112,97630.0,97620.0,0.0614]
[1734790922392,0.15178112,97630.0,97627.0,0.051233]
[1734790922897,0.051232,97629.0,97620.0,0.051236]
[1734790923104,0.38055949,97633.0,97625.0,0.002]
[1734790923105,0.051233,97627.0,97625.0,0.002]
[1734790924697,0.058,97629.0,97608.0,0.24903427]
[1734790924891,0.3608,97620.0,97618.0,0.051237]
[1734790925295,0.412037,97620.0,97618.0,0.051237]
[1734790926501,0.417037,97620.0,97618.0,0.051237]
[1734790926696,0.051241,97611.0,97608.0,0.01020519]
[1734790927003,0.051243,97608.0,97604.0,0.23882908]
[1734790927301,0.051244,97605.0,97604.0,0.23882908]
[1734790927708,0.051245,97603.0,97602.0,0.051246]
[1734790928008,0.3608,97611.0,97601.0,0.01023076]
[1734790928209,0.3608,97611.0,97599.0,0.23882908]
[1734790928210,0.00100351,97603.0,97602.0,0.051246]
[1734790928904,0.00200351,97603.0,97602.0,0.053246]
[1734790929104,0.00200351,97603.0,97602.0,0.002]
[1734790929311,0.00200351,97603.0,97602.0,0.003]
[1734790929916,0.36280351,97603.0,97602.0,0.003]
[1734790930104,0.36280351,97603.0,97593.0,0.23882908]
[1734790930105,0.05125,97594.0,97593.0,0.23882908]
[1734790930405,0.41340131,97594.0,97593.0,0.14862908]
[1734790931013,0.051257,97581.0,97580.0,0.14862908]
[1734790931202,0.412057,97581.0,97580.0,0.14862908]
[1734790931512,0.41342498,97581.0,97580.0,0.14862908]
[1734790932711,0.41542498,97581.0,97580.0,0.003]
[1734790934514,0.051262,97572.0,97571.0,9.9e-05]
[1734790935603,0.05262998,97572.0,97571.0,9.9e-05]
[1734790935803,0.05362998,97572.0,97571.0,9.9e-05]
[1734790937014,0.00236798,97572.0,97571.0,9.9e-05]
[1734790937210,0.00236798,97572.0,97571.0,0.412161]
[1734790937211,0.00336798,97572.0,97571.0,0.412161]
[1734790937417,0.3608,97593.0,97587.0,0.051254]
[1734790937715,0.3608,97593.0,97588.0,0.051253]
[1734790937916,0.3608,97593.0,97582.0,0.3608]
[1734790938121,0.412051,97593.0,97589.0,0.051252]
[1734790938809,0.413051,97593.0,97589.0,0.051252]
[1734790940602,0.051255,97586.0,97584.0,0.0597]
[1734790940809,0.051255,97586.0,97584.0,0.07014463]
[1734790941515,0.36232001,97593.0,97591.0,0.051251]
[1734790941714,0.001,97593.0,97591.0,0.412051]
[1734790941910,0.3608,97601.0,97591.0,0.3608]
[1734790942414,0.3608,97601.0,97599.0,0.051247]
[1734790942916,0.3608,97625.0,97618.0,0.051237]
[1734790943114,0.3608,97625.0,97619.0,0.058]
[1734790943316,0.3608,97625.0,97623.0,0.051235]
[1734790943615,0.15261691,97635.0,97627.0,0.051232]
[1734790943808,0.051231,97632.0,97627.0,0.051232]
[1734790944623,0.051231,97630.0,97622.0,0.3608]
[1734790944810,0.051231,97630.0,97624.0,0.051234]
[1734790945113,0.051235,97623.0,97619.0,0.058]
[1734790945316,0.009,97625.0,97621.0,0.051236]
[1734790945708,0.051232,97629.0,97621.0,0.051236]
[1734790946314,0.001,97623.0,97620.0,0.051236]
[1734790946519,0.001,97623.0,97619.0,0.058]
[1734790946716,0.001,97623.0,97619.0,0.4188]
[1734790947222,0.001,97623.0,97622.0,0.051235]
[1734790947923,0.001,97623.0,97619.0,0.4188]
[1734790947924,0.051234,97625.0,97619.0,0.058]
[1734790948218,0.051234,97625.0,97619.0,0.109237]
[1734790948413,0.10054912,97632.0,97619.0,0.109237]
[1734790948610,0.3608,97627.0,97619.0,0.058]
[1734790949009,0.051236,97620.0,97619.0,0.058]
[1734790949817,0.001,97625.0,97602.0,0.051245]
[1734790950019,0.001,97625.0,97604.0,0.051245]
[1734790950020,0.051241,97612.0,97604.0,0.051245]
[1734790950220,0.3608,97618.0,97609.0,0.324642]
[1734790950517,0.15178612,97619.0,97609.0,0.324642]
[1734790950731,0.15178612,97619.0,97609.0,0.2734]
[1734790950917,0.15178612,97619.0,97610.0,0.051241]
[1734790951118,0.051238,97618.0,97610.0,0.051241]
[1734790951324,0.05124,97613.0,97605.0,0.051244]
[1734790951525,0.3608,97618.0,97605.0,0.051244]
[1734790951819,0.051241,97611.0,97605.0,0.051244]
[1734790952027,0.051241,97611.0,97598.0,0.1132]
[1734790952226,0.051241,97611.0,97606.0,0.051244]
[1734790952824,0.001,97613.0,97598.0,0.0559]
[1734790952825,0.3608,97610.0,97598.0,0.0559]
[1734790953023,0.051247,97600.0,97598.0,0.0559]
[1734790953323,0.3608,97599.0,97598.0,0.0559]
[1734790953626,0.051254,97588.0,97586.0,0.0544]
[1734790953926,0.10054912,97596.0,97582.0,0.0544]
[1734790954228,0.051254,97588.0,97582.0,0.0544]
[1734790954440,0.3608,97591.0,97582.0,0.0544]
[1734790954732,0.051255,97586.0,97582.0,0.0648614]
[1734790955635,0.051256,97584.0,97582.0,0.0648614]
[1734790955823,0.3608,97583.0,97571.0,9.9e-05]
[1734790956018,0.051262,97572.0,97571.0,9.9e-05]
[1734790957137,0.051258,97579.0,97571.0,0.051361]
[1734790957630,0.051259,97578.0,97571.0,0.051361]
[1734790958031,0.001,97572.0,97571.0,0.051361]
[1734790958333,0.001,97572.0,97571.0,9.9e-05]
[1734790958532,0.052262,97572.0,97571.0,9.9e-05]
[1734790959338,0.051262,97572.0,97571.0,9.9e-05]
[1734790959540,0.001,97578.0,97574.0,0.05126]
[1734790959844,0.051259,97577.0,97574.0,0.05126]
[1734790960038,0.051259,97577.0,97571.0,9.9e-05]
[1734790960342,0.001,97572.0,97571.0,9.9e-05]
[1734790961042,0.05126,97575.0,97571.0,9.9e-05]
[1734790961742,0.001,97572.0,97571.0,9.9e-05]
[1734790962146,0.051262,97573.0,97571.0,9.9e-05]
[1734790962647,0.001,97572.0,97571.0,9.9e-05]
[1734790963235,0.051262,97573.0,97571.0,9.9e-05]
[1734790963431,0.052262,97573.0,97571.0,9.9e-05]
[1734790964241,0.001,97572.0,97571.0,9.9e-05]
[1734790966538,0.002,97572.0,97571.0,9.9e-05]
[1734790967137,0.0578,97572.0,97571.0,9.9e-05]
[1734790968141,0.06780101,97572.0,97571.0,9.9e-05]
[1734790968345,0.002,97572.0,97571.0,9.9e-05]
[1734790968744,0.002,97572.0,97571.0,0.55178876]
[1734790968946,0.12253404,97590.0,97572.0,0.102522]
[1734790969139,0.12253404,97590.0,97589.0,0.051253]
[1734790969745,0.05125,97594.0,97591.0,0.051251]
[1734790970044,0.05125,97594.0,97592.0,0.051251]
[1734790971443,0.051249,97597.0,97577.0,0.051259]
[1734790971639,0.10054912,97587.0,97579.0,0.051258]
[1734790971840,0.051254,97586.0,97579.0,0.051258]
[1734790972439,0.10054912,97587.0,97579.0,0.051258]
[1734790973139,0.051257,97581.0,97579.0,0.051258]
[1734790973337,0.051257,97580.0,97579.0,0.002]
[1734790974242,0.10154912,97587.0,97579.0,0.002]
[1734790974442,0.051254,97586.0,97580.0,0.051257]
[1734790974642,0.10154912,97587.0,97580.0,0.051257]
[1734790974849,0.001,97581.0,97580.0,0.051257]
[1734790975347,0.051256,97584.0,97580.0,0.051257]
[1734790976453,0.051256,97584.0,97582.0,0.051256]
[1734790977745,0.052256,97584.0,97582.0,0.051256]
[1734790979854,0.052256,97584.0,97582.0,0.052256]
[1734790980960,0.001,97584.0,97582.0,0.052256]
[1734790982262,0.00052001,97599.0,97598.0,0.051248]
[1734790982560,0.12253404,97602.0,97601.0,0.051246]
[1734790982855,0.12253404,97606.0,97605.0,0.051244]
[1734790984156,0.006,97606.0,97605.0,0.051244]
[1734790984564,0.3608,97620.0,97599.0,0.0583]
[1734790984756,0.46134912,97620.0,97618.0,0.051237]
[1734790984952,0.3608,97620.0,97618.0,0.051237]
[1734790985861,0.3658,97620.0,97618.0,0.051237]
[1734790987161,0.3698,97620.0,97618.0,0.051237]
[1734790987868,0.3748,97620.0,97618.0,0.051237]
[1734790990964,0.05124,97614.0,97611.0,0.051241]
[1734790991165,0.42655701,97620.0,97611.0,0.051241]
[1734790991355,0.426037,97620.0,97608.0,0.18182381]
[1734790991562,0.3748,97620.0,97618.0,0.051237]
[1734790991971,0.3748,97620.0,97610.0,0.051242]
[1734790992271,0.051242,97610.0,97608.0,0.18182381]
[1734790992766,0.051242,97610.0,97607.0,0.18182381]